bitfinex/quotes_SOLUSD_20250901
["timestamp","ask_amount","ask_price","bid_price","bid_amount"]
[1756717845179,13.59559401,203.78,203.72,0.67]
[1756717845343,5.56264751,203.77,203.71,10.50154669]
[1756717845964,13.59559401,203.75,203.71,4.93889918]
[1756717846180,14.30559401,203.75,203.71,4.93889918]
[1756717846345,13.59559401,203.73,203.71,0.03]
[1756717846538,13.59559401,203.72,203.71,0.03]
[1756717846843,19.86824152,203.72,203.71,0.03]
[1756717847562,5.56264751,203.74,203.71,0.03]
[1756717847862,13.59559401,203.73,203.71,0.03]
[1756717849448,6.27264751,203.72,203.71,0.03]
[1756717851750,46.13264751,203.72,203.71,0.03]
[1756717852062,64.7791013,203.72,203.71,0.03]
[1756717853071,59.87040309,203.72,203.71,0.03]
[1756717853385,59.83040309,203.72,203.71,0.03]
[1756717853960,58.95824152,203.72,203.71,0.03]
[1756717854468,13.59559401,203.72,203.71,0.03]
[1756717855261,19.86824152,203.72,203.71,0.03]
[1756717855867,13.59559401,203.72,203.71,0.03]
[1756717856278,19.15824152,203.72,203.71,0.03]
[1756717859375,19.86824152,203.72,203.71,0.03]
[1756717860274,24.9191013,203.72,203.71,0.03]
[1756717862361,59.65040309,203.72,203.71,0.03]
[1756717862758,20.01040309,203.72,203.71,0.03]
[1756717863078,58.79824152,203.72,203.71,0.03]
[1756717865966,53.23559401,203.72,203.71,0.03]
[1756717866186,58.79824152,203.72,203.71,0.03]
[1756717866374,5.62264751,203.75,203.71,0.74]
[1756717866686,13.59559401,203.74,203.72,0.71]
[1756717866886,13.59559401,203.74,203.73,0.71]
[1756717867270,13.59559401,203.74,203.72,4.90853072]
[1756717867670,13.59559401,203.74,203.73,0.71]
[1756717868278,19.15824152,203.74,203.71,0.03]
[1756717868566,13.59559401,203.72,203.71,0.03]
[1756717868888,53.13559401,203.73,203.72,0.71]
[1756717869072,53.13559401,203.73,203.72,5.61869821]
[1756717869674,53.13559401,203.73,203.72,4.90869821]
[1756717870084,13.59559401,203.72,203.71,0.03]
[1756717871178,13.59559401,203.72,203.71,0.74]
[1756717871495,0.06,203.75,203.71,0.74]
[1756717871792,13.59559401,203.73,203.71,0.74]
[1756717872166,13.59559401,203.73,203.71,0.03]
[1756717872370,3.47402781,203.72,203.71,0.03]
[1756717873079,56.54962182,203.72,203.71,0.03]
[1756717874898,53.07559401,203.72,203.71,0.03]
[1756717875277,53.13559401,203.72,203.71,0.03]
[1756717876782,13.65559401,203.72,203.71,0.03]
[1756717876987,0.06,203.72,203.71,0.74]
[1756717877187,0.06,203.72,203.71,5.64893917]
[1756717879196,17.12962182,203.72,203.71,0.03]
[1756717882017,17.78962182,203.72,203.71,0.03]
[1756717884612,22.69832003,203.72,203.71,0.03]
[1756717885297,48.8404816,203.72,203.71,0.03]
[1756717886602,43.93178339,203.72,203.71,0.03]
[1756717886801,48.8404816,203.72,203.71,0.03]
[1756717889493,26.31450941,203.72,203.71,0.03]
[1756717889700,22.8404816,203.72,203.71,0.03]
[1756717892010,62.0204816,203.72,203.71,0.03]
[1756717893509,39.79775558,203.72,203.71,0.03]
[1756717893703,17.12962182,203.72,203.71,0.03]
[1756717893908,56.26962182,203.72,203.71,0.03]
[1756717894702,17.12962182,203.72,203.71,0.72]
[1756717894907,56.26962182,203.72,203.71,0.72]
[1756717895634,56.26962182,203.72,203.71,0.03]
[1756717896320,52.79559401,203.72,203.71,0.03]
[1756717896527,56.26962182,203.72,203.71,0.03]
[1756717898111,61.9804816,203.72,203.71,0.03]
[1756717899237,61.3204816,203.72,203.71,0.03]
[1756717899432,43.27178339,203.72,203.71,0.03]
[1756717899632,82.41178339,203.72,203.71,0.72]
[1756717899939,82.41178339,203.72,203.71,0.03]
[1756717900135,87.3204816,203.72,203.71,0.03]
[1756717900326,87.9804816,203.72,203.71,0.03]
[1756717900919,87.3204816,203.72,203.71,0.03]
[1756717902727,83.84645379,203.72,203.71,0.03]
[1756717902928,87.3204816,203.72,203.71,0.03]
[1756717903530,65.45450941,203.72,203.71,0.03]
[1756717904045,61.9804816,203.72,203.71,0.03]
[1756717905120,65.45450941,203.72,203.71,0.03]
[1756717905828,26.31450941,203.72,203.71,0.03]
[1756717906035,65.43450941,203.72,203.71,0.03]
[1756717909546,39.59559401,203.69,203.68,0.03]
[1756717909750,82.33178339,203.69,203.68,0.03]
[1756717909949,82.99178339,203.69,203.68,0.03]
[1756717910249,39.73775558,203.69,203.68,0.03]
[1756717910449,82.33178339,203.69,203.68,0.03]
[1756717911460,17.06962182,203.69,203.68,0.72]
[1756717911628,56.18962182,203.69,203.68,0.72]
[1756717914133,56.18962182,203.69,203.68,0.03]
[1756717914846,61.24120456,203.69,203.68,0.03]
[1756717915058,56.33178339,203.69,203.68,0.03]
[1756717915354,17.06962182,203.69,203.68,0.75]
[1756717915553,56.18962182,203.69,203.68,0.75]
[1756717915754,56.18962182,203.69,203.68,0.03]
[1756717915939,56.33178339,203.69,203.68,0.03]
[1756717917234,56.33178339,203.69,203.68,0.75]
[1756717917435,56.18962182,203.69,203.68,0.75]
[1756717918361,56.18962182,203.69,203.68,0.03]
[1756717918547,61.09904299,203.69,203.68,0.03]
[1756717918750,56.18962182,203.69,203.68,0.03]
[1756717918951,56.18962182,203.69,203.68,0.75]
[1756717920341,56.18962182,203.69,203.68,0.03]
[1756717920977,61.95120456,203.69,203.68,0.03]
[1756717921643,61.24120456,203.69,203.68,0.03]
[1756717923351,56.33178339,203.69,203.68,0.03]
[1756717923588,61.24120456,203.69,203.68,0.03]
[1756717924153,56.33178339,203.69,203.68,0.03]
[1756717924357,13.73775558,203.69,203.68,0.75]
[1756717924556,17.21178339,203.69,203.68,0.75]
[1756717924776,56.33178339,203.69,203.68,0.75]
[1756717924980,56.18962182,203.69,203.68,0.75]
[1756717925848,52.71559401,203.69,203.68,0.75]
[1756717926242,13.59559401,203.69,203.68,0.75]
[1756717926669,13.59559401,203.69,203.68,5.65966221]
[1756717927987,0.06,203.71,203.68,5.65966221]
[1756717928181,52.77559401,203.71,203.69,0.72]
[1756717928360,52.77559401,203.71,203.7,0.72]
[1756717929087,56.24962182,203.71,203.7,0.72]
[1756717929266,56.24962182,203.71,203.68,0.03]
[1756717929596,17.06962182,203.69,203.68,0.03]
[1756717929767,56.33178339,203.69,203.68,0.03]
[1756717929954,57.04178339,203.69,203.68,0.03]
[1756717930162,61.95120456,203.69,203.68,0.03]
[1756717930760,61.24120456,203.69,203.68,0.03]
[1756717931160,56.33178339,203.69,203.68,0.03]
[1756717932085,56.33178339,203.69,203.68,0.75]
[1756717932586,56.33178339,203.69,203.68,0.03]
[1756717933169,61.95120456,203.69,203.68,0.03]
[1756717933363,61.24120456,203.69,203.68,0.03]
[1756717933558,56.16962182,203.69,203.68,0.03]
[1756717933763,52.69559401,203.69,203.68,0.03]
[1756717933984,56.16962182,203.69,203.68,0.03]
[1756717934284,52.69559401,203.69,203.68,0.75]
[1756717934666,56.16962182,203.69,203.68,0.75]
[1756717934873,56.16962182,203.69,203.68,0.03]
[1756717935077,56.16962182,203.69,203.68,0.75]
[1756717936114,56.16962182,203.69,203.68,0.03]
[1756717936489,52.69559401,203.69,203.68,0.03]
[1756717936692,56.16962182,203.69,203.68,0.03]
[1756717938673,134.7,203.7,203.68,0.75]
[1756717938880,173.8,203.7,203.68,0.75]
[1756717939082,134.7,203.7,203.68,0.75]
[1756717939913,13.59559401,203.69,203.68,0.03]
[1756717940076,13.59559401,203.69,203.68,0.75]
[1756717940578,13.59559401,203.69,203.68,5.65966221]
[1756717943479,134.7,203.7,203.68,5.65966221]
[1756717943704,148.29559401,203.7,203.69,0.67]
[1756717944607,134.7,203.7,203.69,5.57942117]
[1756717944910,13.65559401,203.71,203.69,5.57942117]
[1756717945081,13.65559401,203.71,203.7,0.67]
[1756717945400,0.06,203.71,203.7,0.67]
[1756717946692,0.06,203.71,203.7,5.57918016]
[1756717949302,0.06,203.71,203.7,20.33025516]
[1756717950205,0.06,203.71,203.7,23.80428297]
[1756717951479,0.06,203.71,203.7,20.33025516]
[1756717953483,0.06,203.71,203.7,14.751075]
[1756717953997,13.59559401,203.7,203.68,0.03]
[1756717954193,13.59559401,203.7,203.68,14.315594]
[1756717954384,13.59559401,203.7,203.68,19.22519869]
[1756717954703,13.65559401,203.71,203.69,0.67]
[1756717954894,0.06,203.71,203.7,0.67]
[1756717955093,0.06,203.71,203.7,5.57918016]
[1756717956787,0.06,203.71,203.7,4.90918016]
[1756717957090,0.06,203.71,203.7,18.56477416]
[1756717957701,0.06,203.71,203.7,13.655594]
[1756717957894,0.06,203.71,203.7,19.23477416]
[1756717958917,0.0166749,203.71,203.7,19.23477416]
[1756717959810,0.0166749,203.71,203.7,22.70880197]
[1756717960009,0.0166749,203.71,203.7,19.23477416]
[1756717960911,0.0166749,203.71,203.7,22.70880197]
[1756717961593,0.0166749,203.71,203.7,19.23477416]
[1756717961793,0.0166749,203.71,203.7,22.70880197]
[1756717962718,0.0166749,203.71,203.7,14.325594]
[1756717963217,0.0166749,203.71,203.7,19.23477416]
[1756717963408,0.0166749,203.71,203.7,18.56477416]
[1756717963611,0.0166749,203.71,203.7,13.655594]
[1756717964009,13.59559401,203.7,203.68,0.03]
[1756717964202,3.49070271,203.71,203.7,0.03]
[1756717964406,13.61226891,203.71,203.7,0.03]
[1756717965220,14.30226891,203.71,203.7,0.03]
[1756717965518,17.77629672,203.71,203.7,0.03]
[1756717965713,14.30226891,203.71,203.7,0.03]
[1756717965896,13.61226891,203.71,203.7,0.03]
[1756717966216,0.0166749,203.71,203.7,0.03]
[1756717967113,0.0166749,203.71,203.7,0.7]
[1756717967417,0.0166749,203.71,203.7,20.36025516]
[1756717967927,0.0166749,203.71,203.7,14.781075]
[1756717968231,0.0166749,203.71,203.7,19.69025516]
[1756717968823,0.0166749,203.71,203.7,0.03]
[1756717969317,0.7066749,203.71,203.7,0.03]
[1756717969513,4.18070271,203.71,203.7,0.03]
[1756717969890,13.61226891,203.71,203.7,0.03]
[1756717971508,0.0166749,203.71,203.7,0.7]
[1756717971913,0.0166749,203.71,203.7,2.66681]
[1756717972217,0.06,203.72,203.7,6.14083781]
[1756717972434,0.06,203.72,203.71,0.71]
[1756717972832,0.06,203.72,203.71,6.180838]
[1756717973538,0.06,203.72,203.71,14.56380498]
[1756717975445,0.06,203.72,203.71,10.37977717]
[1756717976514,0.06,203.72,203.71,11.08977717]
[1756717976820,0.06,203.72,203.71,10.37977717]
[1756717977330,0.06,203.72,203.71,11.08977717]
[1756717977538,0.06,203.72,203.71,5.470838]
[1756717977830,0.06,203.72,203.7,4.93901047]
[1756717978035,0.06,203.72,203.7,11.11984847]
[1756717978816,0.06,203.72,203.71,0.71]
[1756717979032,0.06,203.72,203.71,11.829849]
[1756717979241,0.06,203.72,203.71,16.02878817]
[1756717979440,0.06,203.72,203.71,4.90893917]
[1756717980837,0.06,203.72,203.71,5.61893917]
[1756717981211,0.06,203.72,203.71,19.27453317]
[1756717981525,0.06,203.72,203.71,4.90893917]
[1756717981837,0.06,203.72,203.71,5.61893917]
[1756717982015,0.01754627,203.72,203.71,4.90893917]
[1756717982209,0.01754627,203.72,203.71,9.09296698]
[1756717982629,0.01754627,203.72,203.71,11.05948698]
[1756717987643,0.06,203.74,203.71,11.05948698]
[1756717987832,0.06,203.74,203.73,3.47402781]
[1756717988328,0.06,203.74,203.73,6.15025781]
[1756717989134,0.06,203.74,203.73,11.05871508]
[1756717989642,1e-08,203.76,203.75,26.0]
[1756717989815,1e-08,203.76,203.75,29.47402781]
[1756717990018,0.06,203.8,203.75,29.47402781]
[1756717990019,0.06,203.8,203.76,26.0]
[1756717990243,0.06,203.8,203.77,42.47402781]
[1756717990443,0.06,203.8,203.77,43.18402781]
[1756717991090,13.59559401,203.79,203.73,5.61845727]
[1756717991238,13.59559401,203.79,203.77,1.966133]
[1756717991432,0.76,203.78,203.74,0.71]
[1756717991662,0.06,203.78,203.74,0.71]
[1756717991822,0.76,203.78,203.74,14.305594]
[1756717992024,0.76,203.78,203.74,17.77962181]
[1756717992224,0.76,203.78,203.74,4.18402781]
[1756717992539,0.76,203.78,203.75,18.50356946]
[1756717993445,0.06,203.78,203.75,18.50356946]
[1756717994030,0.06,203.78,203.75,9.09200327]
[1756717994255,0.06,203.78,203.76,13.595594]
[1756717995272,0.06,203.78,203.76,18.50314224]
[1756717997778,0.06,203.78,203.77,5.61749374]
[1756717998471,0.01746716,203.78,203.77,9.09152155]
[1756717998646,0.01746716,203.78,203.77,12.62554955]
[1756718003157,0.01746716,203.78,203.77,51.58554955]
[1756718004457,0.01746716,203.78,203.77,48.11152174]
[1756718004662,0.01746716,203.78,203.77,51.58554955]
[1756718005044,0.01746716,203.78,203.77,12.62554955]
[1756718005246,0.01746716,203.78,203.77,51.58554955]
[1756718006871,0.06,203.83,203.79,26.0]
[1756718007061,0.06,203.83,203.82,3.47402781]
[1756718007450,0.06,203.83,203.82,7.62805581]
[1756718009479,0.06,203.83,203.82,12.53434567]
[1756718009867,0.06,203.83,203.82,9.06031786]
[1756718010070,0.06,203.83,203.82,12.53434567]
[1756718010272,0.06,203.83,203.82,50.79434567]
[1756718010502,17.78962182,203.83,203.82,3.474028]
[1756718010661,0.72,203.83,203.8,4.9067285]
[1756718010867,0.66,203.82,203.8,4.9067285]
[1756718011474,0.06,203.83,203.81,3.47402781]
[1756718011803,0.06,203.83,203.81,17.06962181]
[1756718012665,0.06,203.83,203.81,3.47402781]
[1756718012884,0.06,203.83,203.82,4.90628986]
[1756718013398,0.06,203.83,203.82,18.64404586]
[1756718014882,0.72,203.83,203.82,13.737756]
[1756718015191,0.72,203.83,203.81,4.93647038]
[1756718015371,0.66,203.82,203.81,4.93647038]
[1756718015571,0.06,203.83,203.81,4.93647038]
[1756718016177,0.06,203.83,203.81,8.41049819]
[1756718016375,0.06,203.83,203.82,3.47402781]
[1756718016781,0.06,203.83,203.81,18.53206438]
[1756718017095,0.06,203.83,203.81,22.00609219]
[1756718017780,0.06,203.83,203.81,8.41049819]
[1756718018216,0.66,203.82,203.81,1.995553]
[1756718018416,0.66,203.82,203.81,0.03]
[1756718018626,0.06,203.83,203.81,4.93653059]
[1756718018911,0.72,203.83,203.81,4.93653059]
[1756718019100,0.72,203.83,203.81,0.03]
[1756718020691,0.06,203.83,203.81,4.18402781]
[1756718020879,0.06,203.83,203.81,3.50402781]
[1756718021084,0.06,203.83,203.82,4.90628986]
[1756718023510,0.06,203.83,203.82,8.38031767]
[1756718023808,0.06,203.83,203.82,60.24746167]
[1756718024307,0.01722668,203.83,203.82,60.24746167]
[1756718025692,0.01722668,203.83,203.82,21.32746167]
[1756718025998,0.01722668,203.83,203.82,60.22746167]
[1756718027202,0.01722668,203.83,203.82,56.75343386]
[1756718027410,0.01722668,203.83,203.82,60.22746167]
[1756718029017,0.06,203.86,203.82,72.49318632]
[1756718029311,0.06,203.86,203.85,3.47402781]
[1756718029512,0.06,203.86,203.85,42.37402781]
[1756718030013,0.06,203.86,203.83,14.275594]
[1756718030315,0.06,203.86,203.85,3.47402781]
[1756718030618,0.06,203.86,203.85,8.37959562]
[1756718030791,0.06,203.86,203.85,4.90556781]
[1756718030992,0.72,203.86,203.85,38.88]
[1756718031216,0.72,203.86,203.84,38.88]
[1756718031397,0.66,203.85,203.84,38.88]
[1756718032012,0.06,203.86,203.84,38.88]
[1756718032205,0.73,203.86,203.84,38.88]
[1756718032392,0.06,203.86,203.84,38.88]
[1756718032603,0.67,203.85,203.84,38.88]
[1756718033014,17.73962182,203.85,203.82,13.595594]
[1756718033215,4.14402781,203.84,203.81,43.81632461]
[1756718033720,0.67,203.83,203.81,43.81632461]
[1756718034022,0.67,203.82,203.81,43.81632461]
[1756718034811,17.06962182,203.85,203.81,43.81632461]
[1756718035001,0.67,203.84,203.81,43.81632461]
[1756718035525,0.67,203.83,203.81,43.81632461]
[1756718036141,17.06962182,203.85,203.81,43.81632461]
[1756718036304,0.67,203.83,203.81,43.81632461]
[1756718037822,13.59559401,203.85,203.81,43.81632461]
[1756718038031,0.67,203.84,203.81,43.81632461]
[1756718038328,0.67,203.84,203.81,0.03]
[1756718038641,0.67,203.84,203.81,4.93648652]
[1756718040824,0.06,203.86,203.83,3.47402781]
[1756718041205,0.06,203.86,203.83,4.13402781]
[1756718041606,0.06,203.86,203.83,18.39962181]
[1756718043708,0.06,203.86,203.84,4.90580847]
[1756718044611,4.14402781,203.85,203.81,4.93633916]
[1756718044807,13.65559401,203.86,203.81,4.93633916]
[1756718044808,4.14402781,203.84,203.81,0.03]
[1756718045313,0.67,203.83,203.81,4.93642926]
[1756718046426,0.67,203.83,203.81,0.03]
[1756718046829,13.65559401,203.86,203.81,0.03]
[1756718047013,3.47402781,203.84,203.81,0.03]
[1756718047410,4.14402781,203.84,203.81,0.03]
[1756718048918,3.47402781,203.84,203.81,0.03]
[1756718049237,4.14402781,203.83,203.81,0.03]
[1756718049916,3.47402781,203.83,203.81,0.03]
[1756718050119,0.67,203.82,203.81,0.03]
[1756718050317,3.47402781,203.83,203.81,0.03]
[1756718050712,18.56099557,203.86,203.81,0.03]
[1756718051035,13.59559401,203.83,203.81,0.03]
[1756718051839,3.47402781,203.82,203.81,0.03]
[1756718052218,0.67,203.82,203.81,0.03]
[1756718052421,4.14402781,203.82,203.81,0.03]
[1756718053235,0.67,203.82,203.81,0.03]
[1756718053438,13.59559401,203.82,203.81,0.03]
[1756718053614,13.59559401,203.83,203.81,0.03]
[1756718063030,0.06,203.84,203.82,0.67]
[1756718063247,0.06,203.84,203.83,0.67]
[1756718064163,0.06,203.84,203.82,4.90628986]
[1756718065325,0.06,203.84,203.82,0.67]
[1756718065836,0.06,203.84,203.81,4.93653059]
[1756718066139,0.06,203.84,203.81,5.60653059]
[1756718067250,3.53402781,203.84,203.81,19.28212459]
[1756718067453,3.53402781,203.84,203.81,14.375594]
[1756718067454,17.75962182,203.83,203.81,14.375594]
[1756718067648,17.75962182,203.83,203.81,0.03]
[1756718067955,17.06962182,203.83,203.81,0.03]
[1756718068152,13.59559401,203.83,203.81,0.03]
[1756718068351,13.59559401,203.83,203.81,4.9365232]
[1756718069656,13.59559401,203.83,203.81,5.6065232]
[1756718070452,13.59559401,203.83,203.81,0.03]
[1756718071750,13.59559401,203.83,203.81,0.7]
[1756718072251,13.65559401,203.83,203.81,0.7]
[1756718072624,13.65559401,203.83,203.81,0.03]
[1756718073055,17.75962182,203.82,203.81,0.03]
[1756718073428,13.59559401,203.82,203.81,0.03]
[1756718074654,0.06,203.83,203.81,0.7]
[1756718074834,0.06,203.83,203.82,0.67]
[1756718075438,0.06,203.83,203.81,0.03]
[1756718075656,0.06,203.83,203.81,5.60646344]
[1756718076435,0.06,203.83,203.82,0.67]
[1756718077658,0.06,203.83,203.82,5.57628986]
[1756718078665,0.06,203.83,203.82,4.90628986]
[1756718079061,0.06,203.83,203.81,5.60653059]
[1756718079561,0.06,203.83,203.81,4.93653059]
[1756718079965,0.06,203.83,203.81,5.60653059]
[1756718082178,0.06,203.83,203.82,0.67]
[1756718082966,0.03319981,203.84,203.82,0.67]
[1756718083469,0.03319981,203.84,203.83,0.67]
[1756718083973,0.03319981,203.84,203.83,5.57604915]
[1756718084154,0.03319981,203.84,203.83,4.90604915]
[1756718084358,0.03319981,203.84,203.83,5.57604915]
[1756718084564,0.03319981,203.84,203.83,9.0457837]
[1756718084867,0.00919637,203.84,203.83,9.0457837]
[1756718085458,0.00919637,203.84,203.83,7.54131315]
[1756718085660,0.00919637,203.84,203.83,11.0110477]
[1756718090384,0.06,203.87,203.83,7.54131315]
[1756718090588,0.06,203.87,203.86,3.46973455]
[1756718091086,0.06,203.88,203.86,3.46973455]
[1756718091087,0.06,203.88,203.86,4.13973455]
[1756718091280,0.06,203.89,203.87,4.13973455]
[1756718091472,0.06,203.89,203.88,3.46973455]
[1756718091667,1e-08,203.89,203.88,4.13973455]
[1756718091873,1e-08,203.89,203.88,17.73532855]
[1756718092073,1e-08,203.89,203.88,22.64017453]
[1756718092681,13.59559401,203.96,203.88,34.90228949]
[1756718092863,13.59559401,203.96,203.92,3.46973455]
[1756718093066,14.29559401,203.96,203.92,3.46973455]
[1756718093375,13.59559401,203.94,203.89,42.20973455]
[1756718093580,4.16973455,203.93,203.92,14.735136]
[1756718093778,0.7,203.93,203.92,14.735136]
[1756718094091,3.46973455,203.94,203.92,19.63901987]
[1756718094389,4.16973455,203.94,203.92,19.63901987]
[1756718094890,0.7,203.94,203.92,19.63901987]
[1756718095893,4.16973455,203.93,203.9,4.90413471]
[1756718096081,4.16973455,203.92,203.9,4.90413471]
[1756718096283,3.46973455,203.92,203.91,13.595594]
[1756718096589,0.7,203.94,203.91,13.595594]
[1756718096791,4.16973455,203.94,203.91,13.595594]
[1756718097196,0.7,203.97,203.92,0.7]
[1756718097493,0.1,204.02,203.91,17.06532855]
[1756718097494,0.7,203.98,203.93,4.16973455]
[1756718097696,14.29559401,203.98,203.94,4.90340296]
[1756718098487,14.29559401,203.98,203.94,19.63564396]
[1756718098866,14.29559401,203.98,203.94,5.60340296]
[1756718099064,14.29559401,203.98,203.95,3.46973455]
[1756718099286,0.7,203.97,203.95,14.295594]
[1756718099684,13.59559401,203.98,203.95,14.295594]
[1756718099890,0.7,203.96,203.95,14.295594]
[1756718100193,3.46973455,203.97,203.95,14.295594]
[1756718100393,14.29559401,203.97,203.95,14.295594]
[1756718100693,14.29559401,203.97,203.95,19.0691759]
[1756718100895,17.76532856,203.97,203.95,14.1661492]
[1756718101483,14.29559401,203.97,203.95,19.06925247]
[1756718101685,13.59559401,203.97,203.95,19.06925247]
[1756718102265,17.06532856,203.97,203.95,14.1661492]
[1756718102466,17.76532856,203.97,203.95,14.1661492]
[1756718102886,17.76532856,203.97,203.93,4.90363096]
[1756718103075,17.06532856,203.97,203.94,14.166149]
[1756718103278,17.06532856,203.97,203.94,14.866149]
[1756718103479,17.06532856,203.97,203.94,14.166149]
[1756718103682,17.06532856,203.97,203.93,4.90363096]
[1756718103974,13.59559401,203.97,203.94,14.866149]
[1756718104592,13.59559401,203.98,203.94,14.866149]
[1756718104898,17.06532856,203.98,203.95,0.7]
[1756718105268,3.46973455,203.98,203.96,14.166149]
[1756718105712,3.46973455,203.98,203.94,0.7]
[1756718105887,4.16973455,203.98,203.95,4.90316253]
[1756718106093,3.46973455,203.98,203.94,19.29897352]
[1756718106275,4.16973455,203.98,203.94,5.60337952]
[1756718106474,4.16973455,203.98,203.95,13.595594]
[1756718107206,3.46973455,203.96,203.93,4.93360869]
[1756718107709,17.06532856,203.94,203.93,0.03]
[1756718108198,17.76532856,203.94,203.93,0.03]
[1756718109197,13.59559401,203.94,203.93,0.03]
[1756718109397,13.59559401,203.94,203.93,0.73]
[1756718109576,0.06,203.97,203.93,18.93342255]
[1756718109780,0.06,203.97,203.93,18.23342255]
[1756718109974,0.06,203.97,203.95,4.90316253]
[1756718110175,13.65559401,203.97,203.93,15.463688]
[1756718110375,17.82532856,203.97,203.93,15.463688]
[1756718111073,17.12532856,203.97,203.93,20.36727117]
[1756718111474,0.06,203.97,203.93,20.36727117]
[1756718111678,3.46973455,203.94,203.93,0.03]
[1756718111902,17.90749013,203.94,203.93,0.03]
[1756718112222,22.11161449,203.91,203.9,0.03]
[1756718112582,22.81161449,203.91,203.9,0.03]
[1756718112779,26.28134904,203.91,203.9,0.03]
[1756718113001,22.81161449,203.91,203.9,0.03]
[1756718113511,26.28134904,203.91,203.9,0.03]
[1756718114108,22.81161449,203.91,203.9,0.03]
[1756718114272,56.60749013,203.91,203.9,0.03]
[1756718114477,13.59559401,203.91,203.9,0.03]
[1756718114696,17.06532856,203.91,203.9,0.03]
[1756718114899,13.59559401,203.91,203.9,0.73]
[1756718115496,13.59559401,203.92,203.9,0.73]
[1756718115697,13.59559401,203.92,203.91,0.7]
[1756718115892,13.59559401,203.94,203.91,4.16973455]
[1756718116099,13.59559401,203.96,203.92,0.7]
[1756718116276,13.59559401,203.96,203.93,4.9036434]
[1756718116479,13.59559401,203.96,203.94,0.7]
[1756718116677,0.06,203.97,203.95,0.7]
[1756718117094,0.06,203.97,203.93,8.37337795]
[1756718117275,0.06,203.97,203.94,0.7]
[1756718117606,0.06,203.97,203.96,3.46973455]
[1756718117979,0.06,203.97,203.96,4.16973455]
[1756718118180,0.06,203.97,203.96,9.07265669]
[1756718119210,0.06,203.97,203.9,15.76056344]
[1756718119381,0.06,203.97,203.94,0.7]
[1756718119582,0.06,203.97,203.95,0.7]
[1756718120108,0.06,203.97,203.96,0.7]
[1756718120401,0.06,203.97,203.96,5.60292214]
[1756718121403,0.06,203.97,203.96,4.90292214]
[1756718121711,13.65559401,203.97,203.95,4.90312014]
[1756718122215,0.06,203.97,203.95,4.90312014]
[1756718122516,0.06,203.97,203.95,5.58312014]
[1756718122725,0.06,203.97,203.96,0.68]
[1756718122924,0.06,203.97,203.94,4.9033499]
[1756718123515,0.06,203.97,203.95,0.68]
[1756718124623,0.06,203.97,203.95,5.58308438]
[1756718124912,0.06,203.97,203.95,4.90308438]
[1756718125099,0.06,203.97,203.96,0.68]
[1756718126303,0.06,203.97,203.96,15.411519]
[1756718126723,0.06,203.97,203.96,20.31444114]
[1756718127201,0.06,203.97,203.96,5.58292214]
[1756718127406,0.06,203.97,203.96,9.05265669]
[1756718128400,0.06,203.97,203.96,5.58292214]
[1756718128821,0.06,203.97,203.96,4.90292214]
[1756718129024,4.17973455,203.97,203.93,13.595594]
[1756718129233,3.46973455,203.94,203.9,0.03]
[1756718129524,3.46973455,203.94,203.9,0.71]
[1756718129725,17.06532856,203.95,203.9,0.71]
[1756718129905,3.46973455,203.94,203.9,0.71]
[1756718130310,3.46973455,203.93,203.9,0.71]
[1756718130622,3.46973455,203.93,203.9,5.61431959]
[1756718131918,13.59559401,203.92,203.9,0.03]
[1756718132236,17.06532856,203.91,203.9,0.03]
[1756718132399,17.20749013,203.91,203.9,0.03]
[1756718132599,17.20749013,203.91,203.88,0.03]
[1756718132600,39.59559401,203.89,203.88,0.03]